bitfinex/quotes_BTCUSD_20250314
["timestamp","ask_amount","ask_price","bid_price","bid_amount"]
[1741963812896,0.011992,83383.0,83378.0,0.011993]
[1741963813101,0.011992,83383.0,83376.0,0.0001692]
[1741963813102,0.551867,83377.0,83376.0,0.0001692]
[1741963813505,0.3,83377.0,83376.0,0.2400462]
[1741963813863,0.251861,83380.0,83376.0,0.2400432]
[1741963814064,0.251867,83377.0,83376.0,0.0001692]
[1741963814347,0.239874,83377.0,83376.0,0.0001692]
[1741963814550,0.5470413,83382.0,83378.0,0.239871]
[1741963814704,0.239866,83380.0,83377.0,0.011993]
[1741963814906,0.239856,83384.0,83377.0,0.239873]
[1741963815108,0.01320696,83387.0,83381.0,0.011993]
[1741963815310,0.3,83389.0,83385.0,0.011992]
[1741963815647,0.239844,83388.0,83384.0,0.239853]
[1741963815861,0.239845,83387.0,83381.0,0.011993]
[1741963816029,0.011992,83382.0,83376.0,0.0001692]
[1741963816235,0.4124,83390.0,83381.0,0.011993]
[1741963816562,0.239814,83398.0,83395.0,0.239822]
[1741963816857,0.01199,83400.0,83396.0,0.239818]
[1741963816858,0.239809,83400.0,83396.0,0.239818]
[1741963817090,0.239772,83413.0,83399.0,0.01199]
[1741963817282,0.239771,83413.0,83406.0,0.251779]
[1741963817488,0.00012258,83404.0,83399.0,0.239811]
[1741963817624,0.00012258,83404.0,83401.0,0.01199]
[1741963820367,2.4e-07,83407.0,83406.0,0.26631985]
[1741963820873,2.4e-07,83407.0,83406.0,0.2907504]
[1741963821583,2.4e-07,83407.0,83406.0,0.2967504]
[1741963821986,2.4e-07,83407.0,83406.0,0.5967504]
[1741963822192,2.4e-07,83407.0,83406.0,0.5907504]
[1741963822609,2.4e-07,83407.0,83406.0,0.5967504]
[1741963822824,2.4e-07,83407.0,83406.0,0.257779]
[1741963823439,2.4e-07,83407.0,83406.0,0.423539]
[1741963823848,2.4e-07,83407.0,83406.0,0.73807985]
[1741963824054,2.4e-07,83407.0,83406.0,0.73207985]
[1741963824255,2.4e-07,83407.0,83406.0,0.723539]
[1741963827765,2.4e-07,83407.0,83406.0,0.423459]
[1741963828543,2.4e-07,83407.0,83406.0,0.257779]
[1741963828749,2.4e-07,83407.0,83406.0,0.251779]
[1741963829110,2.4e-07,83407.0,83406.0,0.257779]
[1741963830327,0.00739417,83407.0,83406.0,0.251779]
[1741963830482,0.00739417,83407.0,83402.0,0.239799]
[1741963830681,0.00739417,83407.0,83406.0,0.24479]
[1741963830884,0.00739417,83407.0,83406.0,0.256779]
[1741963831294,0.02964478,83407.0,83406.0,0.251779]
[1741963831514,0.02964478,83407.0,83406.0,0.229779]
[1741963831515,0.04845574,83407.0,83406.0,0.229779]
[1741963832408,0.04845574,83407.0,83402.0,0.01699]
[1741963832409,0.239799,83403.0,83402.0,0.005]
[1741963832610,0.551788,83403.0,83402.0,0.005]
[1741963832833,0.56632885,83403.0,83402.0,0.005]
[1741963833582,0.56632885,83403.0,83380.0,0.011993]
[1741963833583,0.239825,83394.0,83382.0,0.251851]
[1741963833786,0.239838,83390.0,83385.0,0.239849]
[1741963834096,0.01935686,83403.0,83381.0,0.0121623]
[1741963834097,0.43175686,83403.0,83402.0,0.01199]
[1741963834276,0.04160747,83403.0,83402.0,0.01199]
[1741963835203,0.04160747,83403.0,83393.0,0.239828]
[1741963835204,0.251803,83399.0,83393.0,0.239828]
[1741963835408,0.04160747,83403.0,83402.0,0.251792]
[1741963835946,0.02225061,83403.0,83402.0,0.251792]
[1741963837782,0.02225061,83403.0,83402.0,0.254792]
[1741963838199,0.02961024,83403.0,83402.0,0.254792]
[1741963838428,2.4e-07,83403.0,83402.0,0.251792]
[1741963838632,2.4e-07,83403.0,83402.0,0.255792]
[1741963839057,2.4e-07,83403.0,83402.0,0.251792]
[1741963839519,2.4e-07,83403.0,83402.0,0.256792]
[1741963839953,2.4e-07,83407.0,83403.0,0.011989]
[1741963840162,2.4e-07,83407.0,83404.0,0.239796]
[1741963840364,2.4e-07,83407.0,83405.0,0.239793]
[1741963840569,2.4e-07,83407.0,83405.0,0.239791]
[1741963840782,2.4e-07,83407.0,83402.0,0.005]
[1741963840783,0.239799,83403.0,83402.0,0.005]
[1741963840958,0.239799,83403.0,83387.0,0.1656]
[1741963840959,0.3,83405.0,83404.0,0.251785]
[1741963841179,0.3,83405.0,83404.0,0.239796]
[1741963841587,0.3,83405.0,83402.0,0.245799]
[1741963841866,0.03557296,83405.0,83403.0,0.239799]
[1741963842203,0.011989,83404.0,83389.0,0.011991]
[1741963842436,0.03557296,83405.0,83404.0,0.239796]
[1741963842896,0.03557296,83405.0,83404.0,0.251785]
[1741963843100,0.01180534,83406.0,83405.0,0.011989]
[1741963843521,0.01881148,83407.0,83405.0,0.011989]
[1741963843522,0.01881148,83407.0,83406.0,0.251779]
[1741963844882,0.2326,83421.0,83419.0,0.239753]
[1741963845089,0.412739,83425.0,83421.0,0.239745]
[1741963845338,0.412739,83425.0,83423.0,0.239741]
[1741963845654,0.000339,83425.0,83424.0,0.251725]
[1741963847110,0.01230225,83425.0,83424.0,0.251725]
[1741963847311,2.5e-07,83425.0,83424.0,0.332825]
[1741963847847,0.000339,83435.0,83434.0,0.251695]
[1741963847848,5.5e-07,83435.0,83434.0,0.251695]
[1741963848040,5.5e-07,83435.0,83434.0,0.43179585]
[1741963848161,7.5e-07,83454.0,83449.0,0.011983]
[1741963848363,0.00012335,83454.0,83453.0,0.251637]
[1741963848623,3.5e-07,83454.0,83453.0,0.251637]
[1741963850702,3.5e-07,83454.0,83453.0,0.256637]
[1741963850930,3.5e-07,83454.0,83453.0,0.27117785]
[1741963851137,3.5e-07,83462.0,83461.0,0.011981]
[1741963851305,3.5e-07,83462.0,83461.0,0.01317893]
[1741963851890,3.5e-07,83462.0,83461.0,0.011981]
[1741963852587,3.5e-07,83462.0,83461.0,0.017981]
[1741963853050,3.5e-07,83462.0,83461.0,0.183421]
[1741963854037,3.5e-07,83462.0,83461.0,0.177421]
[1741963854247,0.011982,83457.0,83450.0,0.251644]
[1741963854625,0.02785436,83458.0,83452.0,0.239657]
[1741963855315,0.02225192,83456.0,83454.0,0.23965]
[1741963855613,0.02225192,83456.0,83454.0,0.251632]
[1741963856136,0.02225192,83456.0,83455.0,0.011982]
[1741963856358,0.01565462,83459.0,83456.0,0.239647]
[1741963856540,0.31565462,83459.0,83456.0,0.239647]
[1741963856708,0.3,83459.0,83456.0,0.239647]
[1741963857123,0.0072693,83456.0,83454.0,0.239651]
[1741963857688,0.0072693,83456.0,83454.0,0.241651]
[1741963858114,0.0072693,83456.0,83454.0,0.253633]
[1741963858324,0.2469173,83456.0,83454.0,0.002]
[1741963858516,0.311982,83455.0,83454.0,0.002]
[1741963858722,0.239673,83447.0,83444.0,0.239681]
[1741963858949,0.011982,83452.0,83445.0,0.239678]
[1741963858950,0.011983,83451.0,83445.0,0.239678]
[1741963859331,0.3,83450.0,83447.0,0.239672]
[1741963859544,0.23967,83448.0,83441.0,0.239688]
[1741963859694,0.011984,83441.0,83430.0,0.011986]
[1741963859894,0.011984,83442.0,83434.0,0.23971]
[1741963860106,0.011984,83442.0,83437.0,0.239701]
[1741963860299,0.3,83443.0,83437.0,0.011985]
[1741963860549,0.3,83443.0,83441.0,0.239687]
[1741963860705,0.3,83443.0,83442.0,0.011984]
[1741963860902,0.239644,83457.0,83449.0,0.239667]
[1741963861107,0.539659,83452.0,83448.0,0.239669]
[1741963861313,0.3189253,83450.0,83448.0,0.23967]
[1741963861507,0.0189253,83450.0,83449.0,0.011983]
[1741963862897,0.04314653,83450.0,83449.0,0.011983]
[1741963863102,0.04314653,83450.0,83449.0,0.25165]
[1741963863303,0.02977685,83450.0,83449.0,0.25165]
[1741963864716,0.02977685,83450.0,83449.0,0.25365]
[1741963864891,0.00755562,83450.0,83449.0,0.25365]
[1741963865110,0.00755562,83450.0,83449.0,0.25165]
[1741963865478,0.00755562,83450.0,83449.0,0.25765]
[1741963865479,0.00012249,83450.0,83449.0,0.25765]
[1741963866104,0.00012249,83450.0,83449.0,0.25165]
[1741963866529,0.00012249,83450.0,83449.0,0.25665]
[1741963867105,4.9e-07,83450.0,83449.0,0.57119085]
[1741963867367,1e-08,83461.0,83460.0,0.251616]
[1741963867544,1e-08,83461.0,83460.0,0.416936]
[1741963868209,1e-08,83461.0,83455.0,0.011982]
[1741963868401,0.01879782,83461.0,83460.0,0.251616]
[1741963868604,0.011982,83452.0,83429.0,0.0814]
[1741963868803,0.01879782,83461.0,83420.0,1.14370575]
[1741963868804,0.011984,83439.0,83426.0,0.16532]
[1741963868959,0.3,83443.0,83430.0,0.011986]
[1741963869159,0.3,83443.0,83440.0,0.239691]
[1741963869538,0.3,83443.0,83439.0,0.239694]
[1741963869737,0.3,83443.0,83440.0,0.239692]
[1741963869939,0.3,83443.0,83441.0,0.239689]
[1741963870253,0.31880403,83443.0,83442.0,0.011984]
[1741963870465,0.01880403,83443.0,83442.0,0.011984]
[1741963870849,0.01174003,83442.0,83441.0,0.239689]
[1741963871050,0.239693,83440.0,83433.0,0.011985]
[1741963871245,0.239696,83439.0,83436.0,0.239702]
[1741963871732,0.011984,83440.0,83400.0,0.63724575]
[1741963871875,0.239728,83428.0,83418.0,0.239753]
[1741963872075,0.239728,83428.0,83422.0,0.011987]
[1741963872275,0.3,83432.0,83427.0,0.011986]
[1741963872507,0.02224278,83438.0,83436.0,0.239704]
[1741963872682,0.02224278,83438.0,83437.0,0.011985]
[1741963873250,0.02236525,83438.0,83437.0,0.011985]
[1741963873608,0.02236525,83438.0,83437.0,0.01318346]
[1741963873812,2.5e-07,83438.0,83437.0,0.01318336]
[1741963873973,2.5e-07,83438.0,83437.0,0.02772421]
[1741963874176,2.5e-07,83438.0,83437.0,0.34814775]
[1741963874436,2.5e-07,83438.0,83437.0,0.42424939]
[1741963874776,2.5e-07,83438.0,83437.0,0.41864236]
[1741963875204,2.5e-07,83438.0,83437.0,0.42164236]
[1741963875412,2.5e-07,83438.0,83437.0,0.43618321]
[1741963875772,2.5e-07,83438.0,83437.0,0.43318321]
[1741963876009,2.5e-07,83438.0,83437.0,0.48918321]
[1741963876255,2.5e-07,83438.0,83437.0,0.70192321]
[1741963876612,2.5e-07,83438.0,83437.0,0.65192321]
[1741963876815,2.5e-07,83438.0,83437.0,0.70192321]
[1741963877178,2.5e-07,83438.0,83437.0,0.69592321]
[1741963877636,2.5e-07,83438.0,83437.0,0.17214236]
[1741963877856,2.5e-07,83438.0,83437.0,0.183225]
[1741963878044,2.5e-07,83438.0,83437.0,0.177225]
[1741963878448,2.5e-07,83438.0,83437.0,0.18442333]
[1741963878645,2.5e-07,83438.0,83437.0,0.183225]
[1741963879067,2.5e-07,83438.0,83437.0,0.177225]
[1741963879202,2.5e-07,83438.0,83437.0,0.182225]
[1741963881574,2.5e-07,83438.0,83437.0,0.177225]
[1741963881773,2.5e-07,83438.0,83437.0,0.1844233]
[1741963882183,2.5e-07,83438.0,83437.0,0.2599617]
[1741963882503,9.9e-07,83438.0,83437.0,0.2527634]
[1741963882704,9.9e-07,83438.0,83437.0,0.2587634]
[1741963883084,9.9e-07,83438.0,83437.0,0.4984644]
[1741963883269,9.9e-07,83438.0,83437.0,0.4924644]
[1741963883870,9.9e-07,83438.0,83437.0,0.4172644]
[1741963884212,0.0001692,83450.0,83449.0,0.25165]
[1741963885767,0.01208592,83450.0,83449.0,0.22965]
[1741963885968,0.01208592,83450.0,83449.0,0.23365]
[1741963886567,0.03441282,83450.0,83449.0,0.245633]
[1741963889119,0.07014936,83450.0,83449.0,0.004]
[1741963889320,0.07014936,83450.0,83449.0,0.25565]
[1741963890754,3.5e-07,83462.0,83461.0,0.251613]
[1741963892380,3.5e-07,83462.0,83461.0,0.254613]
[1741963892923,3.5e-07,83462.0,83461.0,0.251613]
[1741963893326,3.5e-07,83462.0,83461.0,0.255613]
[1741963895459,0.00727273,83462.0,83461.0,0.255613]
[1741963895801,0.00727273,83462.0,83461.0,0.251613]
[1741963896263,0.00727273,83462.0,83461.0,0.257613]
[1741963897374,3.5e-07,83462.0,83461.0,0.257613]
[1741963897765,3.5e-07,83462.0,83461.0,0.251613]
[1741963898154,3.5e-07,83462.0,83461.0,0.257613]
[1741963898351,9.5e-07,83467.0,83466.0,0.251598]
[1741963898573,4.5e-07,83467.0,83466.0,0.251598]
[1741963899226,0.0003386,83470.0,83466.0,0.251598]
[1741963899378,0.011976,83498.0,83486.0,0.011978]
[1741963899583,0.011977,83487.0,83473.0,0.011979]
[1741963899800,0.23957,83483.0,83480.0,0.239578]
[1741963899973,0.239543,83492.0,83478.0,0.011979]
[1741963900176,0.239543,83492.0,83461.0,0.006]
[1741963900177,0.4124,83495.0,83490.0,0.011977]
[1741963900408,0.4124,83495.0,83491.0,0.011977]
[1741963900565,0.4124,83495.0,83492.0,0.25152]
[1741963900774,0.4124,83495.0,83484.0,0.239564]
[1741963900775,0.011977,83492.0,83488.0,0.239553]
[1741963901011,0.011977,83492.0,83473.0,0.239596]
[1741963901221,0.3,83491.0,83484.0,0.011978]
[1741963901435,0.3,83491.0,83489.0,0.23955]
[1741963901581,0.539547,83491.0,83488.0,0.239549]
[1741963901786,0.539547,83491.0,83489.0,0.239552]
[1741963901787,0.3,83491.0,83489.0,0.239552]
[1741963901991,0.3,83491.0,83490.0,0.239549]
[1741963902313,0.25838831,83494.0,83489.0,0.239552]
[1741963902314,0.31884831,83494.0,83491.0,0.239546]
[1741963902485,0.31884831,83494.0,83493.0,0.251518]
[1741963902676,0.31884831,83494.0,83491.0,0.239544]
[1741963902888,0.55838631,83494.0,83491.0,0.239544]
[1741963903299,0.11957503,83493.0,83480.0,0.239575]
[1741963903496,0.011977,83487.0,83480.0,0.011978]
[1741963903733,0.239563,83486.0,83482.0,0.239571]
[1741963903933,0.539561,83486.0,83483.0,0.239569]
[1741963904147,0.3,83486.0,83485.0,0.251541]
[1741963904407,0.31879508,83486.0,83485.0,0.251541]
[1741963904610,0.01879508,83486.0,83485.0,0.251541]
[1741963905586,0.03764339,83486.0,83485.0,0.251541]
[1741963906589,0.03764339,83486.0,83483.0,0.251547]
[1741963906590,0.03764339,83486.0,83481.0,0.251552]
[1741963906758,0.28918439,83486.0,83476.0,0.011979]
[1741963906982,0.23958,83480.0,83477.0,0.239586]
[1741963907136,0.011978,83480.0,83473.0,0.239597]
[1741963907345,0.239581,83479.0,83475.0,0.239591]
[1741963907545,0.239581,83479.0,83476.0,0.239589]
[1741963907746,0.239586,83477.0,83473.0,0.239597]
[1741963907948,0.239578,83480.0,83477.0,0.239584]
[1741963908327,0.239578,83481.0,83478.0,0.239583]
[1741963908529,0.3,83483.0,83480.0,0.239576]
[1741963908732,0.01884831,83486.0,83485.0,0.251541]
[1741963909157,0.3,83492.0,83491.0,0.239546]
[1741963909500,0.4124,83495.0,83493.0,0.251518]
[1741963909899,0.23955,83490.0,83486.0,0.23956]
[1741963910130,0.011977,83493.0,83488.0,0.239552]
[1741963910265,0.011977,83493.0,83485.0,0.239563]
[1741963910266,0.239554,83489.0,83485.0,0.239563]
[1741963910481,0.239557,83488.0,83484.0,0.239564]
[1741963910669,0.239557,83488.0,83485.0,0.239561]
[1741963910867,0.011979,83479.0,83457.0,0.479284]
[1741963911117,0.011979,83477.0,83471.0,0.239603]
[1741963911314,0.011979,83476.0,83471.0,0.239604]
[1741963911514,0.239588,83477.0,83473.0,0.239596]
[1741963911722,0.01879635,83476.0,83474.0,0.239594]
[1741963911939,0.01879635,83476.0,83472.0,0.251578]
[1741963912653,0.01879635,83476.0,83474.0,0.239594]
[1741963912877,0.01879635,83476.0,83475.0,0.239592]
[1741963913266,0.01879635,83476.0,83474.0,0.239594]
[1741963913465,0.25838635,83476.0,83474.0,0.239594]
[1741963913670,0.01879635,83476.0,83475.0,0.239592]
[1741963913869,0.01879635,83476.0,83473.0,0.239595]
[1741963914283,0.25838735,83476.0,83473.0,0.239595]
[1741963914480,0.3001692,83494.0,83470.0,0.239606]
[1741963914700,0.3001692,83494.0,83487.0,0.011977]
[1741963914701,0.3,83491.0,83487.0,0.011977]
[1741963914865,0.3,83491.0,83490.0,0.239549]
[1741963915061,0.0001692,83494.0,83491.0,0.239546]
[1741963915262,0.23955,83490.0,83482.0,0.011978]
[1741963915582,0.0001692,83494.0,83483.0,0.239569]
[1741963915583,0.239561,83486.0,83483.0,0.239569]
[1741963916001,0.4124,83495.0,83485.0,0.011978]
[1741963916196,0.0121452,83494.0,83489.0,0.239552]
[1741963916509,0.2516832,83494.0,83488.0,0.239547]
[1741963916640,0.0001692,83494.0,83489.0,0.23955]
[1741963916842,0.2397072,83494.0,83491.0,0.239544]
[1741963917242,0.0001692,83494.0,83493.0,0.239541]
[1741963917725,0.01896275,83494.0,83493.0,0.239541]
[1741963917958,0.01896275,83494.0,83493.0,0.251518]
[1741963918746,0.02600907,83494.0,83493.0,0.251518]
[1741963919906,0.00721552,83494.0,83493.0,0.416358]
[1741963920468,0.00721552,83494.0,83493.0,0.463558]
[1741963921282,8.9e-07,83496.0,83495.0,0.251511]
[1741963923415,8.9e-07,83496.0,83495.0,0.255511]
[1741963924812,8.9e-07,83496.0,83495.0,0.004]
[1741963925244,8.9e-07,83496.0,83495.0,0.255511]
[1741963925981,8.9e-07,83496.0,83495.0,0.251511]
[1741963926176,8.9e-07,83496.0,83495.0,0.239535]
[1741963926385,0.011976,83495.0,83490.0,0.239547]
[1741963926607,0.011977,83493.0,83482.0,0.011978]
[1741963926926,0.251574,83474.0,83473.0,0.0003384]
[1741963927100,0.6030865,83474.0,83473.0,0.0003384]
[1741963927302,0.3,83474.0,83473.0,0.0003384]
[1741963927505,0.311979,83474.0,83473.0,0.0003384]
[1741963927707,0.3,83470.0,83467.0,0.239613]
[1741963928062,0.239611,83469.0,83465.0,0.2469194]
[1741963928250,0.239611,83469.0,83466.0,0.239617]
[1741963928459,0.32011469,83470.0,83465.0,0.2469184]
[1741963928633,0.32011469,83470.0,83467.0,0.239615]
[1741963929044,0.32011469,83470.0,83468.0,0.23961]
[1741963929248,0.251581,83472.0,83468.0,0.24001748]
[1741963929497,0.251587,83470.0,83468.0,0.00040748]
[1741963929660,0.01198,83469.0,83468.0,0.00040748]
[1741963930866,0.316208,83470.0,83468.0,0.00140748]
[1741963931084,0.01198,83469.0,83468.0,0.00174568]
[1741963931252,0.01198,83469.0,83468.0,0.00074568]
[1741963931454,0.328188,83470.0,83468.0,0.00074568]
[1741963931455,0.0766,83470.0,83468.0,0.00074568]
[1741963931667,0.239604,83471.0,83468.0,0.00074568]
[1741963931825,0.251587,83470.0,83468.0,0.00074568]
[1741963932050,0.01198,83469.0,83468.0,0.00074568]
[1741963932239,0.251587,83470.0,83468.0,0.00074568]
[1741963933134,0.01198,83469.0,83468.0,0.00074568]
[1741963933320,0.01962267,83472.0,83469.0,0.239609]
[1741963933514,0.01962267,83472.0,83470.0,0.239606]
[1741963933716,0.251573,83475.0,83470.0,0.239606]
[1741963933893,0.239596,83474.0,83471.0,0.239602]
[1741963934504,0.25785999,83474.0,83471.0,0.239602]
[1741963934705,0.31826399,83474.0,83472.0,0.2396]
[1741963935050,0.31826399,83474.0,83472.0,0.2176]
[1741963935174,0.3,83471.0,83468.0,0.00074568]
[1741963935877,0.3,83471.0,83469.0,0.239609]
[1741963936350,0.239607,83470.0,83468.0,0.00074568]
[1741963937017,0.01874089,83474.0,83472.0,0.2396]
[1741963937213,0.01874089,83474.0,83472.0,0.239599]
[1741963937364,0.311979,83477.0,83472.0,0.239599]
[1741963937575,0.239604,83471.0,83468.0,0.00074568]
[1741963937801,0.31198,83469.0,83468.0,0.00074568]
[1741963938197,0.4174558,83469.0,83468.0,0.00074568]
[1741963939002,0.551589,83469.0,83468.0,0.00074568]
[1741963939381,1.05932985,83469.0,83468.0,0.00074568]
[1741963940945,0.239661,83451.0,83450.0,0.0003384]
[1741963941147,0.251639,83453.0,83450.0,0.0003384]
[1741963941148,0.251639,83453.0,83450.0,0.0004559]
[1741963941528,0.239657,83453.0,83450.0,0.2401189]
[1741963941889,0.011982,83454.0,83450.0,0.0004559]
[1741963942091,0.4124,83469.0,83468.0,0.239612]
[1741963942303,0.239615,83468.0,83465.0,0.239621]
[1741963942430,0.239625,83464.0,83460.0,0.239635]
[1741963942631,0.239627,83463.0,83459.0,0.239633]
[1741963942939,0.011981,83465.0,83461.0,0.239631]
[1741963942940,0.251605,83465.0,83461.0,0.239631]
[1741963943135,0.239624,83465.0,83462.0,0.239629]
[1741963943363,0.23963,83462.0,83459.0,0.239633]
[1741963943554,0.23963,83462.0,83453.0,0.239653]
[1741963943555,4e-07,83551.0,83536.0,0.01197]
[1741963943755,4e-07,83551.0,83493.0,0.0809]
[1741963943756,0.0124538,83597.0,83584.0,0.256244]
[1741963943963,1e-06,83589.0,83588.0,0.251231]
[1741963944169,0.71588731,83597.0,83596.0,0.256207]
[1741963944371,0.96877965,83621.0,83620.0,0.301135]
[1741963944594,0.96877965,83621.0,83620.0,0.253135]
[1741963944927,0.96877965,83621.0,83620.0,0.73449839]
[1741963945064,0.96877965,83621.0,83620.0,0.85092369]
[1741963945269,0.251788,83669.0,83620.0,0.85092369]
[1741963945270,6.5e-07,83629.0,83628.0,0.32065185]
[1741963945687,6.5e-07,83629.0,83628.0,0.62065185]
[1741963945890,6.5e-07,83629.0,83628.0,0.32065185]
[1741963946297,0.3,83667.0,83666.0,0.005]
[1741963946496,0.011953,83657.0,83650.0,0.005]
[1741963946724,0.011953,83659.0,83650.0,0.005]
[1741963946922,0.251029,83656.0,83649.0,0.005]
[1741963947127,0.251045,83651.0,83650.0,0.005]
[1741963947328,0.3,83646.0,83643.0,0.005]
[1741963947540,0.3,83641.0,83633.0,0.005]
[1741963947776,0.3,83641.0,83618.0,0.23918]
[1741963947777,0.011957,83633.0,83596.0,0.011962]
[1741963947980,0.011958,83626.0,83608.0,0.23921]
[1741963948107,0.3,83624.0,83612.0,0.239199]
[1741963948308,0.3,83624.0,83614.0,0.239193]
[1741963948517,0.3,83624.0,83593.0,0.011962]
[1741963948518,0.76056,83639.0,83628.0,0.251111]
[1741963948715,0.16448,83638.0,83599.0,0.478463]
[1741963948947,0.76056,83639.0,83596.0,0.011962]
[1741963948948,0.00040945,83626.0,83596.0,0.011962]
[1741963949144,0.00040945,83626.0,83624.0,0.239163]
[1741963949349,0.16448,83625.0,83624.0,0.239163]
[1741963949568,0.00040945,83626.0,83624.0,0.239163]
[1741963950188,0.00040945,83626.0,83625.0,0.011958]
[1741963950537,0.00040945,83626.0,83624.0,0.239163]
[1741963951079,0.00040945,83626.0,83611.0,0.239202]
[1741963951320,0.00040945,83626.0,83624.0,0.241165]
[1741963951862,0.00040945,83626.0,83624.0,0.002]
[1741963952216,0.00040945,83626.0,83624.0,0.241165]
[1741963952620,0.00040945,83626.0,83624.0,0.002]
[1741963953011,0.1644,83625.0,83624.0,0.002]
[1741963953193,0.3,83624.0,83596.0,0.011962]
[1741963953389,0.311958,83622.0,83598.0,0.23924]
[1741963953595,0.3,83622.0,83601.0,0.239231]
[1741963953839,0.251143,83618.0,83598.0,0.23924]
[1741963954000,0.176358,83625.0,83581.0,0.10764218]
[1741963954001,0.01196,83608.0,83585.0,0.239276]
[1741963954212,0.01196,83608.0,83581.0,0.10764218]
[1741963954213,0.92448,83607.0,83591.0,0.011963]
[1741963954412,0.92448,83607.0,83585.0,0.011963]
[1741963954614,0.011961,83600.0,83581.0,0.10764218]
[1741963954913,0.011962,83597.0,83581.0,0.10764218]
[1741963955137,0.011963,83588.0,83581.0,0.10764218]
[1741963955339,0.16436,83587.0,83581.0,0.10764218]
[1741963955737,0.011963,83585.0,83581.0,0.10764218]
[1741963955984,0.23928,83584.0,83581.0,0.10764218]
[1741963956180,0.011964,83583.0,83581.0,0.10764218]
[1741963956389,0.011963,83585.0,83567.0,0.011966]
[1741963956578,0.4040412,83587.0,83569.0,0.011966]
[1741963956811,0.0004092,83587.0,83581.0,0.004]
[1741963956953,0.16436,83586.0,83581.0,0.004]
[1741963957160,0.16436,83586.0,83567.0,0.239327]
[1741963957371,0.011965,83574.0,83558.0,0.011967]
[1741963957604,0.251278,83573.0,83557.0,0.251322]
[1741963957823,0.011967,83559.0,83549.0,0.10764218]
[1741963958140,0.251345,83550.0,83549.0,0.10764218]
[1741963958292,0.011968,83550.0,83532.0,0.10764218]
[1741963958502,0.403677,83558.0,83539.0,0.239408]
[1741963958695,0.16432,83557.0,83546.0,0.011969]
[1741963958910,0.16432,83556.0,83548.0,0.23938]
[1741963959257,0.00040895,83558.0,83545.0,0.011969]
[1741963959460,0.16432,83555.0,83542.0,0.251368]
[1741963959610,0.011968,83554.0,83540.0,0.01454085]
[1741963959816,0.16432,83555.0,83540.0,0.01454085]
[1741963960011,0.16432,83555.0,83545.0,0.251358]
[1741963960223,0.16432,83555.0,83542.0,0.251368]
[1741963960543,0.011968,83553.0,83548.0,0.005]
[1741963960992,0.403685,83555.0,83539.0,0.251376]
[1741963961194,0.16432,83555.0,83545.0,0.003]
[1741963961396,0.16432,83555.0,83546.0,0.239386]
[1741963961599,0.16432,83555.0,83545.0,0.003]
[1741963961729,0.16432,83555.0,83545.0,0.254358]
[1741963961927,0.16432,83555.0,83546.0,0.251355]
[1741963962222,0.16432,83555.0,83545.0,0.254358]
[1741963962428,0.16432,83555.0,83545.0,0.003]
[1741963962619,0.00040895,83558.0,83553.0,0.011968]
[1741963962803,0.00040895,83558.0,83554.0,0.00119667]
[1741963963005,0.00040895,83558.0,83557.0,0.02650785]
[1741963963419,0.00040895,83558.0,83557.0,0.02770432]
[1741963964241,0.00040895,83558.0,83557.0,0.02650785]
[1741963964630,0.00040895,83558.0,83557.0,0.03370416]
[1741963964829,0.00040895,83558.0,83557.0,0.33370416]
[1741963965029,0.00040895,83558.0,83557.0,0.33250785]
[1741963965172,0.00040895,83558.0,83557.0,0.32650785]
[1741963965789,0.00040895,83558.0,83557.0,0.02650785]
[1741963966021,0.00040895,83558.0,83557.0,0.01454085]
[1741963966444,0.00040895,83558.0,83557.0,0.02650785]
[1741963966650,0.00040895,83558.0,83557.0,0.03250785]
[1741963967056,0.00040895,83558.0,83557.0,0.03370436]
[1741963967251,0.00040895,83558.0,83557.0,0.02770436]
[1741963967455,0.23373594,83576.0,83559.0,0.011967]
[1741963967661,0.00012264,83576.0,83561.0,0.011967]
[1741963967860,0.00012264,83576.0,83562.0,0.0131635]
[1741963968087,0.00012264,83576.0,83568.0,0.011966]
[1741963968335,0.00012264,83576.0,83575.0,0.011965]
[1741963968975,0.00012264,83576.0,83573.0,0.01454085]
[1741963969196,0.00012264,83576.0,83565.0,0.011966]
[1741963969397,0.00012264,83576.0,83566.0,0.01454085]
[1741963969601,0.00012264,83576.0,83558.0,0.25389185]
[1741963969602,0.23942564,83576.0,83558.0,0.25389185]
[1741963969839,0.01208764,83576.0,83560.0,0.239347]
[1741963970039,0.01208764,83576.0,83562.0,0.239342]
[1741963970557,0.011967,83562.0,83557.0,0.000339]
[1741963970766,0.239334,83565.0,83557.0,0.000339]
[1741963970966,0.239334,83565.0,83561.0,0.002]
[1741963970967,0.011967,83562.0,83561.0,0.002]
[1741963971359,0.011967,83562.0,83557.0,0.000339]
[1741963971563,0.415591,83562.0,83557.0,0.000339]
[1741963972108,0.251306,83565.0,83557.0,0.000339]
[1741963972109,0.16428,83561.0,83557.0,0.000339]
[1741963973095,0.16424,83562.0,83557.0,0.000339]
[1741963974052,0.16424,83565.0,83560.0,0.251314]
[1741963974262,0.00012264,83576.0,83572.0,0.239314]
[1741963974431,0.16424,83571.0,83560.0,0.011967]
[1741963974657,0.16424,83571.0,83564.0,0.239336]
[1741963974907,0.16424,83575.0,83565.0,0.239333]
[1741963975092,0.16424,83575.0,83565.0,0.011966]
[1741963975221,0.00012264,83576.0,83557.0,0.245695]
[1741963975422,0.239323,83569.0,83557.0,0.245695]
[1741963975740,0.011965,83571.0,83557.0,0.000339]
[1741963975941,0.239323,83569.0,83564.0,0.004]
[1741963976172,0.011966,83565.0,83564.0,0.004]
[1741963976559,0.011966,83565.0,83551.0,0.239372]
[1741963976766,0.239341,83563.0,83553.0,0.011968]
[1741963976950,0.251308,83563.0,83550.0,0.011968]
[1741963977149,0.251302,83565.0,83553.0,0.251335]
[1741963977462,0.011966,83570.0,83545.0,0.11408144]
[1741963977463,0.251274,83574.0,83561.0,0.239344]
[1741963977670,0.011965,83573.0,83561.0,0.239344]
[1741963977887,0.011965,83573.0,83559.0,0.011967]
[1741963977888,0.239321,83570.0,83559.0,0.251317]
[1741963978086,0.251287,83570.0,83560.0,0.239348]